[Event "CCT Julius Baer-D3 2024"]
[Site "Online"]
[Date "2024.09.27"]
[Round "1.1"]
[White "Kobalia, Mikhail"]
[Black "Sindarov, Javokhir"]
[Result "1/2-1/2"]
[ECO "B33"]
[WhiteElo "2543"]
[BlackElo "2677"]
[Annotator "ChessBase"]
[PlyCount "113"]
[EventDate "2024.09.25"]
[EventType "swiss"]
[EventCountry "NET"]
[SourceTitle "playchess.com"]
[Source "ChessBase"]
[SourceQuality "1"]
[TimeControl "600+2"]

1. e4 {[%emt 0:00:03]} c5 {[%emt 0:00:10]} 2. Nf3 {[%emt 0:00:01]} e6 {[%emt 0:00:01]} 3. d4 {[%emt 0:00:07]} cxd4 {[%emt 0:00:01]} 4. Nxd4 {[%emt 0:00:01]} Nf6 {[%emt 0:00:01]} 5. Nc3 {[%emt 0:00:01]} Nc6 {[%emt 0:00:00]} 6. Ndb5 {[%emt 0:00:03]} d6 {[%emt 0:00:02]} 7. Bf4 {[%emt 0:00:01]} e5 {[%emt 0:00:01]} 8. Bg5 {[%emt 0:00:01]} a6 {[%emt 0:00:01]} 9. Na3 {[%emt 0:00:01]} b5 {[%emt 0:00:04]} 10. Nd5 {[%emt 0:00:01]} Be7 {[%emt 0:00:01]} 11. Bxf6 {[%emt 0:00:01]} Bxf6 {[%emt 0:00:00]} 12. c4 {[%emt 0:00:01]} b4 {[%emt 0:00:08]} 13. Nc2 {[%emt 0:00:02]} a5 {[%emt 0:00:32]} 14. Be2 {[%emt 0:00:02]} O-O {[%emt 0:00:07]} 15. O-O {[%emt 0:00:02]} Be6 {[%emt 0:00:22]} 16. Qd3 {[%emt 0:00:03]} Bxd5 {[%emt 0:00:56]} 17. cxd5 {[%emt 0:00:15]} Nb8 {[%emt 0:00:24]} 18. Ne3 {[%emt 0:00:44]} Nd7 {[%emt 0:00:04]} 19. Rac1 {[%emt 0:00:03]} Nc5 {[%emt 0:00:05]} 20. Rxc5 {[%emt 0:00:22]} dxc5 {[%emt 0:00:01]} 21. Nc4 {[%emt 0:00:03]} Ra7 {[%emt 0:00:39]} 22. Bg4 {[%emt 0:00:05]} Qb8 {[%emt 0:00:45]} 23. d6 {[%emt 0:00:04]} Rd8 {[%emt 0:01:04]} 24. Rd1 {[%emt 0:00:08]} Qb7 {[%emt 0:00:14]} 25. Qe2 {[%emt 0:01:32]} g6 {[%emt 0:01:00]} 26. Rd5 {[%emt 0:00:03]} h5 {[%emt 0:00:04]} 27. Bh3 {[%emt 0:00:03]} Qb5 {[%emt 0:00:01]} 28. g3 {[%emt 0:00:18]} Kg7 {[%emt 0:00:29]} 29. Kg2 {[%emt 0:00:08]} Qa4 {[%emt 0:00:08]} 30. b3 {[%emt 0:00:16]} Qc6 {[%emt 0:00:01]} 31. Qe3 {[%emt 0:00:07]} a4 {[%emt 0:00:18]} 32. Rxc5 {[%emt 0:00:03]} Qa8 {[%emt 0:00:02]} 33. Rc7 {[%emt 0:02:45]} Rb7 {[%emt 0:01:20]} 34. Be6 {[%emt 0:00:53]} axb3 {[%emt 0:00:10]} 35. axb3 {[%emt 0:00:03]} Rxd6 {[%emt 0:00:25]} 36. Rxb7 {[%emt 0:00:24]} Rxe6 {[%emt 0:00:02]} 37. Qa7 {[%emt 0:00:45]} Qxa7 {[%emt 0:00:18]} 38. Rxa7 {[%emt 0:00:00]} h4 {[%emt 0:00:03]} 39. Ra5 {[%emt 0:00:07]} Re7 {[%emt 0:01:05]} 40. Rb5 {[%emt 0:00:02]} Ra7 {[%emt 0:00:01]} 41. Rxb4 {[%emt 0:00:04]} Ra2 {[%emt 0:00:03]} 42. Rb7 {[%emt 0:00:18]} Kf8 {[%emt 0:00:07]} 43. Rb8+ {[%emt 0:00:19]} Kg7 {[%emt 0:00:01]} 44. b4 {[%emt 0:00:05]} Re2 {[%emt 0:00:04]} 45. Kf3 {[%emt 0:00:06]} Rc2 {[%emt 0:00:02]} 46. Ne3 {[%emt 0:00:07]} Rc3 {[%emt 0:00:00]} 47. Rb7 {[%emt 0:00:16]} Bg5 {[%emt 0:00:03]} 48. b5 {[%emt 0:00:03]} hxg3 {[%emt 0:00:01]} 49. hxg3 {[%emt 0:00:01]} Rb3 {[%emt 0:00:02]} 50. Ke2 {[%emt 0:00:04]} Bxe3 {[%emt 0:00:01]} 51. fxe3 {[%emt 0:00:01]} Kf6 {[%emt 0:00:02]} 52. b6 {[%emt 0:00:02]} Kg5 {[%emt 0:00:02]} 53. Kf3 {[%emt 0:00:26]} Rb2 {[%emt 0:00:04]} 54. Rb8 {[%emt 0:00:02]} Rb3 {[%emt 0:00:04]} 55. Rb7 {[%emt 0:00:03]} Rb2 {[%emt 0:00:01]} 56. Rb8 {[%emt 0:00:01]} Rb3 {[%emt 0:00:00]} 57. Rb7 {[%emt 0:00:07]} 1/2-1/2

[Event "CCT Julius Baer-D3 2024"]
[Site "Online"]
[Date "2024.09.27"]
[Round "1.2"]
[White "Caruana, Fabiano"]
[Black "Martirosyan, Haik M."]
[Result "1-0"]
[ECO "C23"]
[WhiteElo "2798"]
[BlackElo "2667"]
[Annotator "TA"]
[PlyCount "77"]
[EventDate "2024.09.25"]
[EventType "swiss"]
[EventCountry "NET"]
[SourceTitle "playchess.com"]
[Source "ChessBase"]
[SourceQuality "1"]
[TimeControl "600+2"]

{[%evp 9,77,0,12,-36,-36,-35,-34,-62,-69,-62,-65,-70,0,12,29,12,18,19,13,7,3,0,12,0,28,0,0,0,27,16,26,29,44,50,58,56,73,54,182,185,160,153,183,158,152,153,242,246,252,229,255,235,589,599,893,871,978,863,952,936,934,883,29989,29990,29990,29988,29990,29991,29991,29992]} 1. e4 {[%emt 0:00:04]} e5 {[%emt 0:00:05]} 2. Bc4 {[%emt 0:00:02]} Nf6 {[%emt 0:00:07]} 3. Qf3 {[%emt 0:00:01]} Nc6 {[%emt 0:00:24]} 4. Ne2 {[%emt 0:00:03]} d6 {[%emt 0:00:14]} 5. h3 {[%emt 0:00:05]} g6 {[%emt 0:00:06]} 6. g4 {[%emt 0:00:18]} (6. Nbc3 $11 {should be considered.}) 6... Be6 $15 {[%emt 0:00:34]} 7. d3 {[%emt 0:00:10]} Bg7 {[%emt 0:00:14]} (7... Nb4 {looks sharper.} 8. Bg5 Bg7 9. Na3 d5) 8. Nbc3 {[%emt 0:00:36] Black is slightly better.} Bxc4 {[%emt 0:00:02]} 9. dxc4 {[%emt 0:00:02]} Nd7 {[%emt 0:00:00]} 10. Bd2 {[%emt 0:01:46]} Nc5 {[%emt 0:00:54]} (10... Nd4 $15 11. Nxd4 exd4) 11. O-O-O {[%emt 0:00:24]} Ne6 {[%emt 0:00:24]} 12. Nd5 {[%emt 0:00:16]} Ncd4 {[%emt 0:00:22]} 13. Nxd4 {[%emt 0:00:03]} Nxd4 {[%emt 0:00:23]} 14. Qd3 {[%emt 0:00:02]} c6 {[%emt 0:00:03]} 15. Ne3 {[%emt 0:00:19]} Qe7 {[%emt 0:00:35]} 16. Kb1 {[%emt 0:00:09]} Rd8 {[%emt 0:00:28]} 17. Qa3 {[%emt 0:00:10][%cal Oh3h4]} O-O {[%emt 0:00:27]} 18. h4 {[%emt 0:00:22][%cal Og4g5]} b5 {[%emt 0:00:08]} 19. cxb5 {[%emt 0:00:10]} Nxb5 {[%emt 0:00:01]} 20. Qd3 {[%emt 0:00:01]} d5 {[%emt 0:00:22] [#]} 21. Nxd5 $1 {[%emt 0:01:40]} Qb7 {[%emt 0:00:35]} (21... Qd7 22. Ne3) 22. a4 $1 {[%emt 0:00:23][%cal Od2b4] Black must now prevent Bb4!} Nd4 {[%emt 0:00:31]} 23. Ne3 {[%emt 0:00:01]} Rb8 {[%emt 0:00:27] This costs Black the game.} (23... Nf3 $14 24. Qe2 Nxd2+ 25. Rxd2 Qb4 26. Rxd8 Rxd8) 24. Bc3 $18 {[%emt 0:00:09]} Qe7 {[%emt 0:00:16]} 25. g5 {[%emt 0:00:24]} Rb7 {[%emt 0:00:07]} 26. Qc4 {[%emt 0:00:27]} Rfb8 {[%emt 0:00:04]} 27. Ka2 {[%emt 0:00:25] Prevents Qa3+.} a5 {[%emt 0:00:51]} (27... Qe6 $16 {was worth a try.} 28. Rd3 c5 29. Qxe6 fxe6) 28. Rd3 {[%emt 0:00:22][%cal Bd1d3,Bd3d4,Bd4d8][%mdl 32]} (28. Bxa5 $2 Rxb2+ 29. Ka1 Qa3+) 28... Ne2 {[%emt 0:00:34]} 29. b3 {[%emt 0:00:09]} (29. Qxc6 Bf8 $16) 29... Nd4 {[%emt 0:00:08]} 30. Rhd1 {[%emt 0:00:08]} ({Stronger than} 30. Bxa5 Bf8 31. b4 Rxb4 32. Bxb4 Rxb4 $11) (30. h5 $6 Qxg5 31. Rh3 (31. Bxa5 Qf4 $16) 31... Ra8 32. hxg6 hxg6 $18) 30... Bf8 $2 {[%emt 0:00:08]} (30... Re8 {is tougher.} 31. Bxa5 Reb8) 31. Rxd4 {[%emt 0:00:51]} (31. Bxa5 $2 {too greedy.} Nxb3 32. Rxb3 (32. cxb3 $2 Qa3+ 33. Kb1 Rxb3+ 34. Rxb3 Rxb3+ $19) 32... Rxb3 33. cxb3 Qa3+ 34. Kb1 Rxb3+ $19 (34... Qxb3+ $2 35. Qxb3 Rxb3+ 36. Kc2 $18) (34... Qxb3+ $2 {loses.} 35. Qxb3 Rxb3+ 36. Kc2 $18)) 31... Qa3+ {[%emt 0:00:02]} 32. Kb1 {[%emt 0:00:01][%cal Ba2b1,Bb1c2,Bc2d3,Bd3e2][%mdl 32] [#] Hoping for Rd7.} Rxb3+ {[%emt 0:00:36]} 33. cxb3 {[%emt 0:00:00]} Rxb3+ {[%emt 0:00:01]} 34. Kc2 {[%emt 0:00:01]} Qa2+ {[%emt 0:00:03]} 35. Kd3 {[%emt 0:00:01] Threatens to win with Rd8.} Bb4 {[%emt 0:00:24]} 36. Rd8+ {[%emt 0:00:02] White mates.} Kg7 {[%emt 0:00:00]} 37. Rc1 {[%emt 0:00:08]} Bxc3 {[%emt 0:00:09]} 38. Rxc3 {[%emt 0:00:03]} Qb1+ {[%emt 0:00:02]} 39. Ke2 {[%emt 0:00:03] Weighted Error Value: White=0.06 (flawless) /Black=0.51.  Mistake:       	---       	Black=4      Inaccurate:     	White=2     	Black=3      OK:         	White=11    	Black=9      Best:        	White=1     	---        Strong:       	White=1     	---        Brilliant:      	White=1     	---} 1-0

[Event "CCT Julius Baer-D3 2024"]
[Site "Online"]
[Date "2024.09.27"]
[Round "1.2"]
[White "Caruana, Fabiano"]
[Black "Micki-taryan"]
[Result "1-0"]
[ECO "C23"]
[WhiteElo "2744"]
[BlackElo "2652"]
[Annotator "TA"]
[PlyCount "77"]
[EventDate "2024.09.25"]
[EventType "swiss"]
[EventCountry "NET"]
[SourceTitle "playchess.com"]
[Source "ChessBase"]
[SourceQuality "1"]
[TimeControl "600+2"]

{[%evp 9,77,-6,0,-34,-39,-33,-34,-72,-55,-80,-72,-56,12,8,30,0,15,22,9,15,17,-14,25,0,25,0,0,0,31,27,27,28,38,40,61,61,54,61,175,145,170,165,182,158,150,150,237,232,259,250,251,242,612,599,852,852,921,936,919,893,930,843,29989,29990,29990,29988,29990,29991,29991,29992]} 1. e4 {[%emt 0:00:04]} e5 {[%emt 0:00:05]} 2. Bc4 {[%emt 0:00:02]} Nf6 {[%emt 0:00:07]} 3. Qf3 {[%emt 0:00:01]} Nc6 {[%emt 0:00:24]} 4. Ne2 {[%emt 0:00:03]} d6 {[%emt 0:00:14]} 5. h3 {[%emt 0:00:05]} g6 {[%emt 0:00:06]} 6. g4 {[%emt 0:00:18]} Be6 {[%emt 0:00:34]} 7. d3 {[%emt 0:00:10]} Bg7 {[%emt 0:00:14]} 8. Nbc3 {[%emt 0:00:36] [#] Black is slightly better.} Bxc4 $1 {[%emt 0:00:02]} 9. dxc4 {[%emt 0:00:02]} Nd7 {[%emt 0:00:00]} 10. Bd2 {[%emt 0:01:46]} Nc5 {[%emt 0:00:54]} (10... Nd4 $15 11. Nxd4 exd4) 11. O-O-O $11 {[%emt 0:00:24]} Ne6 {[%emt 0:00:24]} 12. Nd5 {[%emt 0:00:16]} Ncd4 {[%emt 0:00:22]} 13. Nxd4 {[%emt 0:00:03]} Nxd4 {[%emt 0:00:23]} 14. Qd3 {[%emt 0:00:02]} c6 {[%emt 0:00:03]} 15. Ne3 {[%emt 0:00:19]} Qe7 {[%emt 0:00:35]} 16. Kb1 {[%emt 0:00:09]} Rd8 {[%emt 0:00:28]} 17. Qa3 {[%emt 0:00:10][%cal Oh3h4]} O-O {[%emt 0:00:27]} 18. h4 {[%emt 0:00:22][%cal Oa3d3]} b5 {[%emt 0:00:08]} 19. cxb5 {[%emt 0:00:10]} Nxb5 {[%emt 0:00:01]} 20. Qd3 {[%emt 0:00:01]} d5 {[%emt 0:00:22] [#]} 21. Nxd5 $1 {[%emt 0:01:40]} Qb7 {[%emt 0:00:35]} (21... Qd7 22. Ne3) 22. a4 $1 {[%emt 0:00:23][%cal Od2b4] aiming for Bb4! White is more active.} Nd4 {[%emt 0:00:31]} 23. Ne3 {[%emt 0:00:01]} Rb8 {[%emt 0:00:27]} ({Black should play} 23... Nf3 $14 24. Qc3 Qa6 (24... Rd4 25. Nc4 $16)) 24. Bc3 $18 {[%emt 0:00:09]} Qe7 {[%emt 0:00:16]} 25. g5 {[%emt 0:00:24]} Rb7 {[%emt 0:00:07]} 26. Qc4 {[%emt 0:00:27]} Rfb8 {[%emt 0:00:04]} 27. Ka2 {[%emt 0:00:25] Against Qa3+} a5 {[%emt 0:00:51]} (27... Qe6 $16 28. Qxe6 fxe6) 28. Rd3 {[%emt 0:00:22][%cal Bd1d3,Bd3d4,Bd4d8][%mdl 32]} (28. Bxa5 $2 Rxb2+ 29. Ka1 Qa3+) 28... Ne2 {[%emt 0:00:34] [#]} 29. b3 $1 {[%emt 0:00:09]} (29. Qxc6 Bf8 $14) 29... Nd4 {[%emt 0:00:08]} 30. Rhd1 {[%emt 0:00:08]} (30. Bxa5 Bf8 31. b4 Rxb4 32. Bxb4 Rxb4 $11) (30. h5 Qxg5 31. Rdd1 (31. Bxa5 Qf4 $16) 31... Qf4 $14) 30... Bf8 $2 {[%emt 0:00:08]} (30... Re8 31. Bxa5 Bf8) 31. Rxd4 {[%emt 0:00:51]} (31. Bxa5 $2 {is the wrong capture.} Nxb3 32. Rxb3 (32. cxb3 $2 Qa3+ 33. Kb1 Rxb3+ 34. Rxb3 Rxb3+ $19) 32... Rxb3 33. cxb3 Qa3+ 34. Kb1 Rxb3+ $19 (34... Qxb3+ $2 {too greedy.} 35. Qxb3 Rxb3+ 36. Kc2 $18) (34... Qxb3+ $2 {loses.} 35. Qxb3 Rxb3+ 36. Kc2 $18)) 31... Qa3+ {[%emt 0:00:02]} 32. Kb1 {[%emt 0:00:01][%cal Ba2b1,Bb1c2,Bc2d3,Bd3e2][%mdl 32] Threatens to win with Rd7.} Rxb3+ {[%emt 0:00:36]} 33. cxb3 {[%emt 0:00:00]} Rxb3+ {[%emt 0:00:01]} 34. Kc2 {[%emt 0:00:01]} Qa2+ {[%emt 0:00:03]} 35. Kd3 {[%emt 0:00:01]} Bb4 {[%emt 0:00:24]} 36. Rd8+ {[%emt 0:00:02] White mates.} Kg7 {[%emt 0:00:00]} 37. Rc1 {[%emt 0:00:08]} Bxc3 {[%emt 0:00:09]} 38. Rxc3 {[%emt 0:00:03]} Qb1+ {[%emt 0:00:02]} 39. Ke2 {[%emt 0:00:03] Weighted Error Value: White=0.07 (flawless) /Black=0.54.  Mistake:       	---       	Black=4      Inaccurate:     	White=3     	Black=3      OK:         	White=9     	Black=7      Best:        	White=1     	---        Strong:       	White=2     	Black=1} 1-0

[Event "CCT Julius Baer-D3 2024"]
[Site "Online"]
[Date "2024.09.27"]
[Round "1.2"]
[White "Duda, Jan-Krzysztof"]
[Black "Alekseenko, Kirill"]
[Result "1-0"]
[ECO "D06"]
[WhiteElo "2738"]
[BlackElo "2632"]
[Annotator "TA"]
[PlyCount "81"]
[EventDate "2024.09.25"]
[EventType "swiss"]
[EventCountry "NET"]
[SourceTitle "playchess.com"]
[Source "ChessBase"]
[SourceQuality "1"]
[TimeControl "600+2"]

{[%evp 9,80,18,16,10,8,14,25,0,0,0,0,-25,-37,-18,-17,-20,-9,-8,-11,-14,-11,-12,0,-10,-6,-11,12,8,24,15,21,21,22,5,6,2,2,2,2,2,16,2,3,0,36,20,65,65,66,66,67,67,67,67,80,0,0,0,0,0,52,52,65,65,67,52,52,52,52,0,29998,29999,29999]} 1. d4 {[%emt 0:00:04]} d5 {[%emt 0:00:03]} 2. c4 {[%emt 0:00:01]} c5 {[%emt 0:00:01]} 3. cxd5 {[%emt 0:00:39]} Nf6 {[%emt 0:00:03]} 4. Nc3 {[%emt 0:00:48]} Nxd5 {[%emt 0:00:11]} 5. e4 {[%emt 0:00:04]} Nxc3 {[%emt 0:00:04]} 6. bxc3 {[%emt 0:00:00]} cxd4 {[%emt 0:00:01]} 7. cxd4 {[%emt 0:00:01]} e5 {[%emt 0:00:01]} 8. dxe5 {[%emt 0:00:47] White has an edge.} (8. Nf3 {simplifies} exd4 9. Qxd4 Qxd4 10. Nxd4 Bc5 11. Be3) 8... Bb4+ {[%emt 0:02:01]} 9. Bd2 {[%emt 0:00:05]} Qd4 {[%emt 0:00:13][%csl LRe4,LRe5]} 10. Rc1 {[%emt 0:01:29]} (10. Nf3 $5 Qxe4+ (10... Bxd2+ 11. Nxd2 Nd7 12. Bb5 $11) 11. Be2 $15) 10... Qxe4+ {[%emt 0:00:56]} 11. Be2 {[%emt 0:00:04]} Bxd2+ {[%emt 0:00:33]} (11... Qxg2 12. Rxc8+ Ke7 13. Bxb4+ (13. Rxh8 Qe4 $18) 13... Ke6 14. Bg4+ (14. Rxh8 Nc6 15. Qd6+ Kf5 16. Bd3+ Qe4+ 17. Bxe4+ Kxe4 18. f3+ Kf5 19. Qd7+ Kxe5 20. Bc3+ Kf4 21. Qg4+ Ke3 22. Qe4#) (14. Rxh8 Nc6 15. Qd6+ Kf5 16. Bd3+ Qe4+ 17. Bxe4+ Kxe4 18. f3+ Kf5 19. Qd7+ Kxe5 20. Bc3+ Kf4 21. Qg4+ Ke3 22. Qe4#)) (11... O-O {keeps more tension.} 12. Nf3 Rd8 13. Rc4 Bxd2+ 14. Qxd2 Qb1+) 12. Qxd2 {[%emt 0:00:02]} O-O {[%emt 0:00:01]} 13. Nf3 {[%emt 0:00:03]} Nc6 {[%emt 0:00:01]} 14. O-O {[%emt 0:00:30]} Nxe5 {[%emt 0:00:51]} 15. Rfe1 {[%emt 0:00:03]} Be6 {[%emt 0:00:30]} 16. Ng5 {[%emt 0:01:03]} Qf5 {[%emt 0:00:52]} 17. Nxe6 {[%emt 0:00:42]} fxe6 {[%emt 0:00:02]} (17... Qxe6 {simplifies} 18. Qb2 Rae8 19. Qxb7 Qxa2 20. Ra1 Qd2) 18. Qe3 {[%emt 0:00:02] Hoping for Rc5.} Rad8 {[%emt 0:01:11]} (18... Ng4 {simplifies} 19. Qg3 Qxf2+ 20. Qxf2 Nxf2 21. Rc7 Ne4) 19. Qxa7 {[%emt 0:00:21][%cal Of2f3]} (19. Rc5 $5 Rd5 $8 20. Rxd5 exd5 21. Qxa7 $11) 19... Nd3 {[%emt 0:01:03]} 20. Bxd3 {[%emt 0:00:20]} Rxd3 {[%emt 0:00:00]} 21. Rc2 {[%emt 0:00:53][%cal Oc2b2]} Rd1 {[%emt 0:00:31]} 22. Rxd1 {[%emt 0:00:03]} Qxc2 $11 {[%emt 0:00:01][%mdl 4096] Endgame. KQR-KQR} 23. Rf1 {[%emt 0:00:02][%cal Bd1f1,Bf1e1,Be1e6][%mdl 32]} b5 {[%emt 0:00:08]} 24. Qa6 {[%emt 0:00:30][%csl LRb5,LRe6]} Qc4 {[%emt 0:00:07]} 25. h3 {[%emt 0:00:01]} h6 {[%emt 0:00:02]} 26. Re1 {[%emt 0:00:06]} Rd8 {[%emt 0:00:16]} 27. g3 {[%emt 0:00:29][%cal Oh3h4]} (27. Rxe6 {leads to mate.} Rd1+) 27... Rd2 {[%emt 0:00:09]} 28. a4 $1 {[%emt 0:00:09]} ({Of course not} 28. Rxe6 Rd1+ 29. Kh2 Rd2 $15) (28. Qxe6+ Qxe6 29. Rxe6 Rxa2 $11) 28... Ra2 {[%emt 0:00:37]} 29. Qxb5 {[%emt 0:00:07]} Rxa4 {[%emt 0:00:08]} 30. Qe8+ {[%emt 0:00:07]} (30. Qxc4 {simplifies} Rxc4 31. Rxe6 Kf7 32. Ra6) 30... Kh7 {[%emt 0:00:01]} 31. Rxe6 {[%emt 0:00:20] White has more active pieces.} Ra1+ {[%emt 0:00:01] [#]} 32. Kh2 {[%emt 0:00:04]} (32. Re1 $1 $16 {[%cal Re1a1]} Ra2 33. Qh5) 32... Rh1+ {[%emt 0:00:04]} 33. Kg2 {[%emt 0:00:02] Threatening mate with Qg6+.} (33. Kxh1 $5 Qf1+ $8 34. Kh2 Qxf2+ 35. Kh1 Qf1+ 36. Kh2 Qf2+ 37. Kh1 Qf1+ 38. Kh2 Qf2+ $11) 33... Qf1+ {[%emt 0:00:04]} 34. Kf3 {[%emt 0:00:02] White wants to mate with Qg6+.} Qd3+ {[%emt 0:00:05]} (34... Qd1+ $1 $11 35. Kg2 (35. Re2 Rxh3 36. Qb5 Rh2 $11) 35... Rg1+ 36. Kh2 Rh1+ 37. Kg2 Rg1+ 38. Kh2 Rh1+ 39. Kg2) 35. Kg4 $14 {[%emt 0:00:17]} Qd1+ {[%emt 0:00:01]} 36. f3 {[%emt 0:00:11][%cal Bf2f3,Bf3f4][%mdl 32] Qg6+ would kill now.} Qd4+ {[%emt 0:00:01]} 37. f4 {[%emt 0:00:16] White threatens Qg6+ and mate.} Qd1+ {[%emt 0:00:09]} 38. Kh4 $1 {[%emt 0:00:02]} Qd3 {[%emt 0:00:08] Against Qg6+} 39. Qf7 {[%emt 0:00:01] Dodges Qf5} (39. Re5 $14) 39... Rg1 $2 {[%emt 0:00:05][%mdl 8192] [#]} (39... Rxh3+ $11 40. Kxh3 Qf1+ 41. Kg4 Qd1+ 42. Kf5 Qd5+ 43. Kg4 Qd1+ 44. Kh4 Qh1+ 45. Kg4 Qd1+) 40. Rxh6+ $3 {[%emt 0:00:03][%mdl 512]} Kxh6 {[%emt 0:00:04]} 41. Qh5# {[%emt 0:00:00] Weighted Error Value: White=0.11 (very precise) /Black=0.17 (very precise) .  Loses game:     	---       	Black=1      Mistake:       	White=2     	Black=1      Inaccurate:     	---       	Black=2      OK:         	White=12    	Black=18     Best:        	White=4     	Black=1      Strong:       	White=2     	---        Brilliant:      	White=1     	---} 1-0

[Event "CCT Julius Baer-D3 2024"]
[Site "Online"]
[Date "2024.09.27"]
[Round "1.2"]
[White "Esipenko, Andrey"]
[Black "Kamsky, Gata"]
[Result "0-1"]
[ECO "B22"]
[WhiteElo "2699"]
[BlackElo "2631"]
[Annotator "ChessBase"]
[PlyCount "90"]
[EventDate "2024.09.25"]
[EventType "swiss"]
[EventCountry "NET"]
[SourceTitle "playchess.com"]
[Source "ChessBase"]
[SourceQuality "1"]
[TimeControl "600+2"]

1. e4 {[%emt 0:00:06]} c5 {[%emt 0:00:09]} 2. Nf3 {[%emt 0:00:01]} e6 {[%emt 0:00:00]} 3. c3 {[%emt 0:00:03]} Nf6 {[%emt 0:00:08]} 4. e5 {[%emt 0:00:02]} Nd5 {[%emt 0:00:01]} 5. d4 {[%emt 0:00:02]} cxd4 {[%emt 0:00:01]} 6. cxd4 {[%emt 0:00:00]} b6 {[%emt 0:00:01]} 7. Nc3 {[%emt 0:00:05]} Bb7 {[%emt 0:00:32]} 8. Bd3 {[%emt 0:00:06]} Be7 {[%emt 0:00:33]} 9. O-O {[%emt 0:00:07]} Nxc3 {[%emt 0:00:14]} 10. bxc3 {[%emt 0:00:03]} O-O {[%emt 0:00:02]} 11. Qe2 {[%emt 0:00:28]} d6 {[%emt 0:00:15]} 12. exd6 {[%emt 0:00:41]} Qxd6 {[%emt 0:00:06]} 13. Ng5 {[%emt 0:00:10]} Bxg5 {[%emt 0:00:16]} 14. Bxg5 {[%emt 0:00:03]} Nd7 {[%emt 0:00:06]} 15. Rad1 {[%emt 0:01:20]} Bxg2 {[%emt 0:00:54]} 16. Kxg2 {[%emt 0:06:59]} Qd5+ {[%emt 0:00:05]} 17. Be4 {[%emt 0:00:01]} Qxg5+ {[%emt 0:00:01]} 18. Kh1 {[%emt 0:00:01]} Rac8 {[%emt 0:00:16]} 19. Rd3 {[%emt 0:00:01]} Nf6 {[%emt 0:00:13]} 20. Bg2 {[%emt 0:00:03]} Nh5 {[%emt 0:01:24]} 21. Qf3 {[%emt 0:00:15]} Nf4 {[%emt 0:00:06]} 22. Re3 {[%emt 0:00:00]} Qxg2+ {[%emt 0:00:35]} 23. Qxg2 {[%emt 0:00:01]} Nxg2 {[%emt 0:00:01]} 24. Kxg2 {[%emt 0:00:00]} Rc4 {[%emt 0:00:01]} 25. Rd1 {[%emt 0:00:02]} Ra4 {[%emt 0:00:16]} 26. d5 {[%emt 0:00:08]} exd5 {[%emt 0:00:03]} 27. Rxd5 {[%emt 0:00:00]} Rxa2 {[%emt 0:00:02]} 28. Rd7 {[%emt 0:00:01]} a5 {[%emt 0:00:35]} 29. Rb7 {[%emt 0:00:02]} Rb2 {[%emt 0:00:04]} 30. c4 {[%emt 0:00:03]} Rb4 {[%emt 0:00:02]} 31. Rf3 {[%emt 0:00:07]} a4 {[%emt 0:00:44]} 32. Rc7 {[%emt 0:00:01]} h6 {[%emt 0:00:24]} 33. h4 {[%emt 0:00:03]} h5 {[%emt 0:00:09]} 34. Rf5 {[%emt 0:00:03]} g6 {[%emt 0:00:03]} 35. Rf3 {[%emt 0:00:00]} b5 {[%emt 0:01:06]} 36. cxb5 {[%emt 0:00:02]} Rxb5 {[%emt 0:00:08]} 37. Rc4 {[%emt 0:00:01]} Ra5 {[%emt 0:00:03]} 38. Ra3 {[%emt 0:00:00]} Rfa8 {[%emt 0:00:02]} 39. f3 {[%emt 0:00:01]} Kg7 {[%emt 0:00:06]} 40. Kf2 {[%emt 0:00:02]} R8a7 {[%emt 0:00:04]} 41. Ke3 {[%emt 0:00:01]} f6 {[%emt 0:00:04]} 42. Kf2 {[%emt 0:00:02]} g5 {[%emt 0:00:02]} 43. Kg3 {[%emt 0:00:03]} R7a6 {[%emt 0:00:02]} 44. Rb4 {[%emt 0:00:03]} Kg6 {[%emt 0:00:02]} 45. Rc4 {[%emt 0:00:01]} Kf5 {[%emt 0:00:15]} 0-1